bitfinex-derivatives/quotes_BTCF0:USTF0_20251011
["timestamp","ask_amount","ask_price","bid_price","bid_amount"]
[1760140802011,0.7216,112820.0,112810.0,0.00111211]
[1760140802319,0.78452878,112820.0,112810.0,0.00211211]
[1760140802508,0.06292878,112820.0,112810.0,0.00111211]
[1760140802708,0.07866097,112830.0,112810.0,0.00011211]
[1760140803019,0.11012536,112850.0,112680.0,0.04618222]
[1760140803212,0.11012536,112810.0,112660.0,0.02367318]
[1760140803419,0.3608,112680.0,112660.0,0.3608]
[1760140803614,0.4,112670.0,112650.0,0.02367318]
[1760140803913,0.3598,112660.0,112640.0,0.02367847]
[1760140804212,0.3608,112670.0,112640.0,0.02367847]
[1760140804213,0.3608,112690.0,112650.0,0.3608]
[1760140804514,0.3608,112690.0,112660.0,0.3608]
[1760140804714,0.36086866,112680.0,112640.0,0.3608]
[1760140805010,0.36086866,112680.0,112650.0,0.3608]
[1760140805213,0.7608856,112670.0,112620.0,0.3608]
[1760140805412,0.36091104,112660.0,112620.0,0.3608]
[1760140805613,0.3608,112650.0,112620.0,0.3608]
[1760140805819,6.647e-05,112640.0,112610.0,0.36088121]
[1760140806015,0.3608,112650.0,112640.0,0.00193353]
[1760140806215,0.3588,112650.0,112640.0,0.00193353]
[1760140806414,0.3588,112650.0,112620.0,0.3608]
[1760140806715,0.04713959,112710.0,112620.0,0.3608]
[1760140806716,0.3608,112680.0,112640.0,0.3608]
[1760140806916,0.3608,112690.0,112660.0,0.3608]
[1760140807117,0.0001077,112670.0,112640.0,0.3628]
[1760140807424,0.0001077,112670.0,112650.0,0.3608]
[1760140807620,0.0001077,112670.0,112660.0,0.3608]
[1760140807820,0.4001077,112670.0,112660.0,0.3608]
[1760140808015,0.4001077,112670.0,112640.0,0.3628]
[1760140808221,0.7608,112660.0,112640.0,0.3628]
[1760140808413,0.8494148,112660.0,112640.0,0.3628]
[1760140808618,0.76086967,112650.0,112620.0,0.3628]
[1760140808824,0.3608,112630.0,112620.0,0.002]
[1760140809118,7.164e-05,112630.0,112620.0,0.002]
[1760140809422,0.36087164,112630.0,112610.0,0.36088121]
[1760140809722,0.3608,112620.0,112610.0,8.121e-05]
[1760140810119,0.8494463,112620.0,112610.0,8.121e-05]
[1760140810315,0.4433548,112590.0,112550.0,0.07891061]
[1760140810514,0.7216,112560.0,112530.0,0.07891061]
[1760140810715,0.0886884,112570.0,112530.0,0.07891061]
[1760140811018,0.3608,112560.0,112540.0,0.04742757]
[1760140811225,0.4494726,112590.0,112550.0,0.40822757]
[1760140811420,0.3608,112580.0,112560.0,0.04742757]
[1760140811723,0.1838,112600.0,112560.0,0.04742757]
[1760140811724,0.00010976,112570.0,112560.0,0.04742757]
[1760140812120,0.00010976,112570.0,112560.0,0.40822757]
[1760140812521,0.08879846,112570.0,112560.0,0.04742757]
[1760140812722,0.00010976,112570.0,112530.0,0.43971061]
[1760140812922,0.00010976,112570.0,112560.0,0.40822757]
[1760140813122,0.00110976,112570.0,112550.0,0.40822757]
[1760140813329,0.45060556,112570.0,112550.0,0.40822757]
[1760140813521,0.0886966,112560.0,112550.0,0.40822757]
[1760140813717,0.3817514,112560.0,112520.0,0.42392849]
[1760140814023,0.3608,112550.0,112540.0,0.04742757]
[1760140814228,0.36190976,112570.0,112540.0,0.04742757]
[1760140814417,0.00110976,112570.0,112560.0,0.04742757]
[1760140814616,0.00010976,112570.0,112560.0,0.40822757]
[1760140814821,0.00210976,112570.0,112560.0,0.04742757]
[1760140815024,0.00210976,112570.0,112560.0,0.40822757]
[1760140815222,0.4494572,112610.0,112560.0,0.82392849]
[1760140815423,0.39203271,112640.0,112600.0,0.40611781]
[1760140815624,0.02026655,112640.0,112630.0,0.3608]
[1760140815818,0.02026655,112640.0,112630.0,0.04531781]
[1760140816018,0.4432995,112610.0,112550.0,0.3608]
[1760140816219,0.0887096,112550.0,112530.0,0.06312849]
[1760140816428,0.0887096,112550.0,112530.0,0.12625698]
[1760140816429,0.3608,112550.0,112530.0,0.12625698]
[1760140816620,0.36087373,112540.0,112530.0,0.12625698]
[1760140816816,0.44958603,112540.0,112530.0,0.06312849]
[1760140817021,0.44958603,112540.0,112490.0,0.36089872]
[1760140817022,0.0887406,112510.0,112490.0,9.872e-05]
[1760140817228,0.44963782,112500.0,112490.0,9.872e-05]
[1760140817921,0.35989402,112500.0,112490.0,9.872e-05]
[1760140818229,0.0887438,112500.0,112490.0,9.872e-05]
[1760140818526,0.4495438,112500.0,112490.0,9.872e-05]
[1760140818726,0.0887438,112500.0,112490.0,0.00109872]
[1760140818920,8.288e-05,112500.0,112490.0,0.76189872]
[1760140819123,8.288e-05,112500.0,112490.0,0.36189872]
[1760140819620,8.288e-05,112500.0,112490.0,0.76189872]
[1760140819825,0.0887341,112520.0,112490.0,0.76189872]
[1760140820026,0.0887281,112520.0,112510.0,0.3608]
[1760140820226,0.0887281,112520.0,112490.0,0.00109872]
[1760140820227,0.0887427,112500.0,112490.0,0.00109872]
[1760140820627,0.3608,112510.0,112490.0,0.00109872]
[1760140820628,0.0887343,112510.0,112490.0,0.00109872]
[1760140820825,0.4495166,112530.0,112500.0,0.3608]
[1760140821032,0.0887166,112530.0,112520.0,0.3608]
[1760140821440,0.08878911,112530.0,112520.0,0.3608]
[1760140821630,0.3608,112570.0,112520.0,0.7608]
[1760140821826,0.0886929,112560.0,112530.0,0.3608]
[1760140822129,0.55015838,112590.0,112530.0,0.3608]
[1760140822130,0.0887135,112540.0,112530.0,0.3608]
[1760140822431,0.8041129,112600.0,112530.0,0.3608]
[1760140822630,0.0886767,112580.0,112570.0,0.3608]
[1760140822832,0.0886846,112570.0,112560.0,0.3608]
[1760140823036,0.0886846,112570.0,112560.0,0.7216]
[1760140823435,0.4886846,112570.0,112560.0,0.7216]
[1760140823635,0.0886925,112560.0,112550.0,0.3608]
[1760140824136,0.0896925,112560.0,112550.0,0.3608]
[1760140824432,0.001,112560.0,112550.0,0.3608]
[1760140824730,0.002,112560.0,112550.0,1.1216]
[1760140824930,0.03074838,112630.0,112550.0,1.1216]
[1760140825135,0.0886453,112620.0,112610.0,0.3608]
[1760140825334,0.0886136,112670.0,112610.0,0.3608]
[1760140825637,0.0886196,112660.0,112650.0,0.3608]
[1760140825830,0.8036896,112710.0,112650.0,0.3608]
[1760140826033,0.0885781,112700.0,112690.0,0.3608]
[1760140826232,0.22245877,112700.0,112690.0,0.3608]
[1760140826433,6.256e-05,112700.0,112690.0,0.3608]
[1760140826632,0.48863406,112700.0,112690.0,0.3608]
[1760140826935,0.08863166,112700.0,112690.0,0.3608]
[1760140827238,0.31720076,112700.0,112690.0,0.3608]
[1760140827435,0.8034513,112770.0,112700.0,0.3608]
[1760140827436,0.29134589,112770.0,112700.0,0.3608]
[1760140827741,0.22207604,112740.0,112730.0,0.3608]
[1760140827934,0.22207604,112740.0,112700.0,0.3608]
[1760140827935,0.0885604,112710.0,112700.0,0.3608]
[1760140828137,0.0885604,112710.0,112700.0,0.3162514]
[1760140828336,0.0886747,112700.0,112690.0,0.3608]
[1760140828542,0.0886747,112700.0,112640.0,0.00904091]
[1760140828543,0.0886055,112650.0,112640.0,0.36984091]
[1760140828835,0.4429642,112670.0,112640.0,0.7216]
[1760140829034,0.0886237,112630.0,112620.0,0.36990414]
[1760140829335,0.0886187,112640.0,112620.0,0.53223157]
[1760140829643,0.442932,112680.0,112640.0,0.00904091]
[1760140829847,0.0886083,112650.0,112640.0,0.3608]
[1760140830140,6.733e-05,112650.0,112640.0,0.17136834]
[1760140830340,0.08867493,112650.0,112640.0,0.53216834]
[1760140830537,0.48967493,112650.0,112640.0,0.3608]
[1760140830743,0.0886137,112640.0,112630.0,0.3608]
[1760140830943,0.25462743,112680.0,112630.0,0.3608]
[1760140831139,0.0885934,112670.0,112660.0,0.3608]
[1760140831339,0.0906148,112650.0,112640.0,0.3608]
[1760140831544,0.004,112650.0,112640.0,0.3608]
[1760140831744,0.0926064,112650.0,112640.0,0.53216834]
[1760140831939,0.0906064,112650.0,112640.0,0.53216834]
[1760140832144,0.0886064,112650.0,112640.0,0.54120925]
[1760140832540,0.0886064,112650.0,112640.0,0.53216834]
[1760140832739,0.0886232,112630.0,112620.0,6.323e-05]
[1760140832938,0.08873198,112630.0,112620.0,0.36086323]
[1760140833145,0.28377648,112650.0,112620.0,0.36086323]
[1760140833445,0.28377648,112650.0,112620.0,0.48015897]
[1760140833446,0.0886232,112630.0,112620.0,0.48015897]
[1760140833637,0.0886204,112630.0,112620.0,0.84095897]
[1760140833940,0.0886193,112630.0,112620.0,0.84095897]
[1760140834246,0.0886181,112640.0,112620.0,0.84095897]
[1760140834546,0.0886181,112640.0,112630.0,0.3608]
[1760140834841,0.00207548,112630.0,112620.0,0.36086323]
[1760140835049,0.5315776,112650.0,112620.0,0.72166323]
[1760140835248,0.0886111,112630.0,112620.0,0.48015897]
[1760140835542,0.088603,112650.0,112630.0,0.11929574]
[1760140835747,0.088603,112650.0,112640.0,0.7216]
[1760140836336,0.0700418,112680.0,112640.0,0.84089574]
[1760140836538,0.4426997,112730.0,112670.0,0.48009574]
[1760140836735,0.0885537,112710.0,112700.0,0.3608]
[1760140836939,0.4428178,112700.0,112650.0,0.3608]
[1760140837139,0.0886096,112640.0,112620.0,0.36086323]
[1760140837338,0.0885886,112660.0,112630.0,0.3608]
[1760140837537,0.00109496,112650.0,112630.0,0.3608]
[1760140837738,0.00109496,112650.0,112640.0,0.3608]
[1760140838049,0.4437774,112700.0,112640.0,0.88009574]
[1760140838242,0.4008863,112700.0,112680.0,0.3608]
[1760140838543,0.0885348,112720.0,112690.0,0.48009574]
[1760140838847,0.088532,112730.0,112710.0,0.7216]
[1760140839044,0.0885271,112730.0,112720.0,0.3608]
[1760140839344,0.00010277,112730.0,112720.0,0.24118175]
[1760140839536,0.4425572,112750.0,112720.0,0.3608]
[1760140839740,0.4425594,112750.0,112710.0,0.3608]
[1760140839944,0.00100648,112750.0,112730.0,0.3608]
[1760140840246,0.0885118,112750.0,112740.0,0.1920277]
[1760140840442,0.0885197,112740.0,112730.0,0.3608]
[1760140840740,0.0885275,112730.0,112720.0,0.2745761]
[1760140841047,0.976431,112730.0,112710.0,0.3608]
[1760140841243,0.4427592,112700.0,112680.0,0.3608]
[1760140841448,0.0885675,112680.0,112670.0,0.3608]
[1760140841945,0.0001133,112690.0,112670.0,0.81110994]
[1760140841946,0.0886728,112690.0,112670.0,0.81110994]
[1760140842242,0.0885671,112680.0,112670.0,0.3608]
[1760140842447,0.0885671,112680.0,112670.0,0.81110994]
[1760140842741,0.0885774,112670.0,112660.0,0.3608]
[1760140842944,0.8035569,112700.0,112650.0,0.3608]
[1760140842945,0.0885857,112660.0,112650.0,0.3608]
[1760140843344,1.2924198,112660.0,112620.0,0.36086323]
[1760140843551,1.2924198,112660.0,112640.0,0.37118364]
[1760140843552,0.0885902,112650.0,112640.0,0.37118364]
[1760140843744,0.08870534,112650.0,112640.0,0.3608]
[1760140844046,0.0886047,112630.0,112620.0,0.36086323]
[1760140844241,0.08869798,112630.0,112620.0,0.01044687]
[1760140844842,0.13577856,112630.0,112620.0,0.01044687]
[1760140845044,0.13577856,112630.0,112620.0,6.323e-05]
[1760140845045,0.89657856,112630.0,112620.0,6.323e-05]
[1760140845244,0.4431147,112610.0,112570.0,0.3608]
[1760140845440,0.08870195,112600.0,112590.0,0.37118364]
[1760140845944,0.47020075,112600.0,112590.0,0.01038364]
[1760140846144,0.5318214,112590.0,112560.0,0.02676355]
[1760140846346,0.0886605,112560.0,112550.0,0.3608]
[1760140846643,0.0886684,112550.0,112540.0,0.02683993]
[1760140846844,0.0886684,112550.0,112540.0,0.38763993]
[1760140847242,0.08876033,112550.0,112540.0,0.78763993]
[1760140847439,0.08876033,112550.0,112540.0,0.38763993]
[1760140848046,0.0886846,112530.0,112520.0,0.36502033]
[1760140848350,0.0886846,112530.0,112520.0,0.7216]
[1760140848544,0.0886925,112520.0,112510.0,0.36502033]
[1760140848739,0.3618,112560.0,112510.0,0.72582033]
[1760140848939,0.3618,112560.0,112470.0,0.13312]
[1760140848940,0.02175262,112560.0,112550.0,0.36502033]
[1760140849146,0.4430743,112620.0,112570.0,0.3608]
[1760140849147,0.088645,112580.0,112570.0,0.3608]
[1760140849447,0.02058759,112580.0,112570.0,0.7216]
[1760140849644,0.02058759,112580.0,112570.0,0.72582033]
[1760140850447,0.02158759,112580.0,112570.0,1.12582033]
[1760140851755,0.00111262,112580.0,112570.0,1.12582033]
[1760140852153,0.00111262,112580.0,112570.0,1.1216]
[1760140852347,0.08977272,112580.0,112570.0,0.7608]
[1760140852547,0.00011262,112580.0,112570.0,1.1216]
[1760140852754,0.00111262,112580.0,112570.0,1.1216]
[1760140853850,0.0886699,112570.0,112550.0,0.3608]
[1760140854056,0.0886699,112570.0,112560.0,0.3608]
[1760140854253,0.36191262,112580.0,112560.0,0.3608]
[1760140854254,0.00111262,112580.0,112560.0,0.3608]
[1760140854460,0.00111262,112580.0,112570.0,0.3608]
[1760140854646,0.00111262,112580.0,112570.0,0.7608]
[1760140855350,0.00111262,112580.0,112570.0,0.3608]
[1760140855554,0.08977352,112580.0,112570.0,0.3608]
[1760140855857,0.088669,112570.0,112560.0,0.3608]
[1760140856052,0.0886768,112560.0,112550.0,0.3608]
[1760140856455,0.0886715,112570.0,112550.0,0.3608]
[1760140856655,0.00011262,112580.0,112560.0,0.3608]
[1760140856960,0.08977772,112580.0,112570.0,0.3608]
[1760140857355,0.088668,112570.0,112560.0,0.3608]
[1760140857555,0.089668,112570.0,112560.0,0.7216]
[1760140857956,0.001,112570.0,112560.0,0.7216]
[1760140858359,0.0896683,112570.0,112560.0,0.3608]
[1760140858570,0.001,112570.0,112560.0,0.7608]
[1760140859255,0.00011262,112580.0,112560.0,0.3608]
[1760140859256,0.00111262,112580.0,112560.0,0.3608]
[1760140859463,0.00111262,112580.0,112570.0,0.3608]
[1760140859859,0.00111262,112580.0,112570.0,0.7608]
[1760140860060,0.00011262,112580.0,112570.0,0.7608]
[1760140860261,0.08877302,112580.0,112570.0,0.3608]
[1760140860458,0.00011262,112580.0,112570.0,0.3608]
[1760140860657,0.00011262,112580.0,112570.0,0.7608]
[1760140860862,0.0314747,112630.0,112580.0,0.44049738]
[1760140861162,0.1200845,112630.0,112620.0,0.7216]
[1760140861362,0.0314747,112640.0,112620.0,0.7216]
[1760140861565,0.1200786,112640.0,112630.0,0.3608]
[1760140861756,0.0886091,112630.0,112620.0,0.3608]
[1760140861957,0.12004097,112630.0,112620.0,0.3608]
[1760140862156,0.8922807,112670.0,112630.0,0.3608]
[1760140862157,0.04708495,112650.0,112630.0,0.3608]
[1760140862361,0.04708495,112670.0,112640.0,0.3608]
[1760140862566,0.13566335,112670.0,112660.0,0.7216]
[1760140862754,0.0885784,112670.0,112660.0,0.7216]
[1760140863066,0.13574802,112670.0,112660.0,0.7216]
[1760140863254,0.4885784,112670.0,112660.0,0.7216]
[1760140863460,0.0886001,112650.0,112640.0,0.3608]
[1760140863764,0.08867734,112650.0,112640.0,0.3608]
[1760140863962,0.48867734,112650.0,112640.0,0.3608]
[1760140864358,8.394e-05,112650.0,112640.0,0.3608]
[1760140864569,8.394e-05,112650.0,112640.0,0.7608]
[1760140864958,0.08867254,112650.0,112640.0,0.3608]
[1760140865761,0.08967254,112650.0,112640.0,0.3608]
[1760140866074,0.00108394,112650.0,112640.0,0.3608]
[1760140866468,0.08967794,112650.0,112640.0,0.3608]
[1760140866963,0.00108394,112650.0,112640.0,0.3608]
[1760140867164,0.08967604,112650.0,112640.0,0.3608]
[1760140867564,0.00108394,112650.0,112640.0,0.3608]
[1760140867869,0.48967354,112650.0,112640.0,0.3608]
[1760140868366,0.088605,112640.0,112630.0,0.3608]
[1760140868562,0.00108394,112650.0,112630.0,0.7216]
[1760140868763,0.00108394,112650.0,112640.0,0.3608]
[1760140869561,0.85080844,112690.0,112640.0,0.3608]
[1760140869562,0.04717114,112710.0,112660.0,0.3608]
[1760140869762,0.04717114,112730.0,112700.0,0.7216]
[1760140870065,0.04717114,112730.0,112700.0,0.3608]
[1760140870265,0.13571934,112720.0,112690.0,0.3608]
[1760140870566,0.04717114,112720.0,112700.0,0.3608]
[1760140870760,0.13571024,112730.0,112700.0,0.3608]
[1760140870968,0.13571024,112730.0,112720.0,0.3608]
[1760140871167,0.04726751,112730.0,112710.0,0.3608]
[1760140871363,0.08863507,112730.0,112720.0,0.3608]
[1760140871563,0.3608,112750.0,112740.0,0.3608]
[1760140871564,0.04717114,112750.0,112740.0,0.3608]
[1760140871964,0.0885226,112750.0,112730.0,0.36070363]
[1760140872266,0.4472069,112740.0,112710.0,0.3608]
[1760140872459,0.0885548,112710.0,112690.0,0.3608]
[1760140872664,0.0885536,112710.0,112690.0,0.3608]
[1760140872964,0.0885694,112690.0,112680.0,0.3608]
[1760140873164,0.0885912,112670.0,112650.0,0.3608]
[1760140873368,9.698e-05,112660.0,112650.0,0.3608]
[1760140873560,9.698e-05,112660.0,112640.0,0.3608]
[1760140873561,0.48768278,112670.0,112640.0,0.3608]
[1760140873765,0.0885858,112670.0,112650.0,0.00090306]
[1760140873968,0.4493858,112670.0,112650.0,0.36170306]
[1760140874267,0.4885929,112660.0,112650.0,0.3608]
[1760140874464,0.0885943,112660.0,112630.0,0.36086511]
[1760140874672,0.0885867,112670.0,112640.0,0.3608]
[1760140874975,0.8036107,112700.0,112660.0,0.3608]
[1760140875167,0.8508179,112700.0,112650.0,0.3608]
[1760140875466,0.449392,112660.0,112630.0,0.36086511]
[1760140875667,0.3608,112660.0,112630.0,0.36086511]
[1760140875868,0.4493928,112660.0,112630.0,0.36176817]
[1760140876064,0.0886063,112640.0,112630.0,0.36086511]
[1760140876268,0.0885974,112650.0,112630.0,0.36086511]
[1760140876469,0.0885909,112660.0,112640.0,0.3608]
[1760140876663,0.3608,112670.0,112640.0,0.3608]
[1760140876664,0.4,112670.0,112640.0,0.3608]
[1760140876865,0.0885743,112680.0,112650.0,0.36170306]
[1760140877071,0.0885818,112670.0,112660.0,0.3608]
[1760140877371,9.808e-05,112690.0,112660.0,0.3608]
[1760140877574,0.0885733,112680.0,112670.0,0.3608]
[1760140877769,0.4493711,112690.0,112670.0,0.36170306]
[1760140877975,0.0885711,112690.0,112670.0,0.3608]
[1760140878671,0.00011493,112680.0,112670.0,0.3608]
[1760140879171,0.40011493,112680.0,112670.0,0.36170306]
[1760140879471,0.0472069,112720.0,112670.0,0.7608]
[1760140879675,0.1357396,112730.0,112710.0,0.3608]
[1760140879870,0.3608,112760.0,112720.0,0.3608]
[1760140879871,0.0472069,112740.0,112720.0,0.3608]
[1760140880080,0.0472069,112740.0,112730.0,0.3608]
[1760140880272,0.0885015,112770.0,112730.0,0.36158813]
[1760140880472,0.0884911,112780.0,112760.0,0.3608]
[1760140880668,0.3608,112790.0,112760.0,0.3608]
[1760140880871,0.0885071,112770.0,112750.0,0.3608]
[1760140881076,0.001,112740.0,112730.0,0.3608]
[1760140881275,0.001,112740.0,112730.0,0.7216]
[1760140881575,0.001,112740.0,112730.0,1.12238813]
[1760140881775,0.001,112740.0,112730.0,0.72238813]
[1760140881973,0.001,112740.0,112730.0,1.12238813]
[1760140882174,0.003,112740.0,112730.0,0.72238813]
[1760140882578,0.49063452,112740.0,112720.0,0.3608]
[1760140882873,0.08863492,112740.0,112720.0,0.36158813]
[1760140883177,0.08863492,112740.0,112730.0,0.3608]
[1760140883381,0.48863492,112740.0,112730.0,0.3608]
[1760140883578,0.08863492,112740.0,112730.0,0.3608]
[1760140884173,0.00010832,112740.0,112730.0,0.3608]
[1760140884372,0.00010832,112740.0,112730.0,0.7216]
[1760140884570,0.00010832,112740.0,112730.0,0.72238813]
[1760140884773,0.40010832,112740.0,112730.0,0.7216]
[1760140885078,1.65287092,112740.0,112690.0,0.3608]
[1760140885273,0.0885585,112700.0,112680.0,0.3608]
[1760140885474,0.0885585,112700.0,112690.0,0.36502033]
[1760140885676,0.0885533,112710.0,112690.0,0.36502033]
[1760140885877,0.0885585,112700.0,112690.0,0.39120545]
[1760140886475,0.4493497,112720.0,112690.0,0.39120545]
[1760140886677,0.0885451,112720.0,112700.0,0.3608]
[1760140886878,8.329e-05,112710.0,112700.0,0.36158813]
[1760140887073,0.0885582,112700.0,112690.0,0.00422033]
[1760140887379,0.0885582,112700.0,112690.0,0.36580846]
[1760140887883,0.4,112700.0,112690.0,0.38997328]
[1760140888082,0.08856,112700.0,112690.0,0.36580846]
[1760140888279,0.08856,112700.0,112690.0,0.38997322]
[1760140888477,0.08856,112700.0,112690.0,0.38576926]
[1760140888779,0.08856,112700.0,112690.0,0.38998958]
[1760140888982,0.00108329,112710.0,112690.0,0.38576922]
[1760140889278,0.0885576,112700.0,112690.0,0.38998955]
[1760140889778,0.0885556,112700.0,112690.0,0.38998955]
[1760140889971,0.0885556,112700.0,112690.0,0.38576922]
[1760140890176,0.08863379,112710.0,112690.0,0.38576922]
[1760140890377,8.329e-05,112710.0,112700.0,0.3608]
[1760140890577,0.08863629,112710.0,112700.0,0.3608]
[1760140891181,0.0885555,112700.0,112690.0,0.3608]
[1760140891377,0.0885555,112700.0,112690.0,0.38500837]
[1760140891683,0.0885555,112700.0,112690.0,0.0249965]
[1760140891981,0.0885555,112700.0,112640.0,0.39245632]
[1760140891982,0.4428655,112680.0,112640.0,0.39245632]
[1760140892177,0.0885948,112650.0,112640.0,0.39245632]
[1760140892676,9.847e-05,112670.0,112640.0,0.40819904]
[1760140892875,9.847e-05,112670.0,112660.0,0.7216]
[1760140893286,9.847e-05,112670.0,112660.0,1.15323696]
[1760140893481,9.847e-05,112670.0,112660.0,0.7216]
[1760140894181,0.08867407,112670.0,112660.0,0.7216]
[1760140894385,0.0885834,112660.0,112650.0,0.3608]
[1760140894577,0.0885834,112660.0,112640.0,0.03463696]
[1760140894578,0.0885913,112650.0,112640.0,0.03463696]
[1760140894773,0.0885913,112650.0,112640.0,0.39543696]
[1760140894979,0.0885913,112650.0,112640.0,0.003]
[1760140894980,0.0885899,112650.0,112640.0,0.003]
[1760140895184,0.4885899,112650.0,112640.0,0.003]
[1760140895480,0.0886025,112640.0,112630.0,6.511e-05]
[1760140895679,0.89661663,112640.0,112630.0,6.511e-05]
[1760140896074,0.0886342,112600.0,112570.0,0.3608]
[1760140896279,0.3608,112630.0,112590.0,0.3608]
[1760140896481,0.0886218,112610.0,112600.0,0.3608]
[1760140896680,0.0886231,112600.0,112590.0,0.3608]
[1760140896879,0.0886316,112590.0,112580.0,0.3608]
[1760140897185,0.0886312,112590.0,112580.0,0.3608]
[1760140897385,0.4886117,112590.0,112580.0,0.3608]
[1760140897679,0.3608,112610.0,112580.0,0.3608]
[1760140897680,0.0886023,112610.0,112580.0,0.3608]
[1760140897878,0.04721413,112650.0,112600.0,0.7216]
[1760140898079,0.0885732,112640.0,112560.0,0.11520696]
[1760140898285,0.06954971,112650.0,112630.0,0.7216]
[1760140898580,0.0885645,112650.0,112640.0,0.3608]
[1760140898880,0.08866821,112650.0,112640.0,0.3608]
[1760140899387,0.00010371,112650.0,112640.0,0.3608]
[1760140899777,0.0885409,112680.0,112650.0,0.3608]
[1760140899984,0.13574913,112690.0,112670.0,0.7216]
[1760140900184,0.13574913,112690.0,112680.0,0.3608]
[1760140900185,0.04721413,112690.0,112680.0,0.3608]
[1760140900384,0.13573363,112710.0,112680.0,0.3608]
[1760140900585,0.0885195,112710.0,112700.0,0.7216]
[1760140900878,8.208e-05,112710.0,112700.0,0.7216]
[1760140901080,8.208e-05,112710.0,112700.0,1.1216]
[1760140902180,0.48859938,112710.0,112700.0,0.7216]
[1760140902378,0.08859938,112710.0,112700.0,0.7216]
[1760140902579,0.55135976,112710.0,112700.0,0.7216]
[1760140902780,0.088533,112690.0,112680.0,0.3608]
[1760140902980,0.08864043,112690.0,112680.0,0.3608]
[1760140903183,0.0885407,112680.0,112670.0,0.3608]
[1760140903591,0.0885485,112670.0,112660.0,0.3608]
[1760140903783,0.08862449,112670.0,112660.0,0.3608]
[1760140904187,0.0885563,112660.0,112650.0,0.36086549]
[1760140904385,0.48862613,112660.0,112650.0,6.549e-05]
[1760140905585,0.08862613,112660.0,112650.0,0.36086549]
[1760140905782,0.08862613,112660.0,112650.0,6.549e-05]
[1760140906390,0.0885874,112620.0,112610.0,0.3608]
[1760140907987,0.08869337,112620.0,112610.0,0.3608]
[1760140908386,0.0885951,112610.0,112600.0,0.3608]
[1760140908891,0.0885951,112610.0,112600.0,0.7216]
[1760140909996,0.15979214,112610.0,112600.0,0.7216]
[1760140912195,0.0886035,112590.0,112580.0,0.3608]
[1760140912389,0.08868914,112590.0,112580.0,0.3608]
[1760140912691,8.564e-05,112590.0,112580.0,0.3608]
[1760140913087,0.08868914,112590.0,112580.0,0.7216]
[1760140913488,8.564e-05,112590.0,112580.0,0.7216]
[1760140913684,0.08868934,112590.0,112580.0,0.7216]
[1760140913884,0.0886207,112570.0,112550.0,8.589e-05]
[1760140914090,0.4484285,112560.0,112550.0,8.589e-05]
[1760140914493,0.8484285,112560.0,112550.0,8.589e-05]
[1760140914690,0.98143547,112560.0,112550.0,8.589e-05]
[1760140914883,0.0886725,112510.0,112500.0,0.02228303]
[1760140915091,0.0886725,112510.0,112500.0,0.3608]
[1760140915394,0.0886808,112500.0,112490.0,0.3608]
[1760140915596,0.0886808,112500.0,112490.0,0.38306826]
[1760140916191,0.0886808,112500.0,112490.0,0.02226826]
[1760140916399,0.0886808,112500.0,112490.0,0.38306826]
[1760140916597,0.0886771,112510.0,112490.0,0.38306826]
[1760140916792,0.44328552,112560.0,112520.0,0.00422033]
[1760140916793,0.80408552,112560.0,112520.0,0.00422033]
[1760140916994,0.0886664,112530.0,112520.0,0.3608]
[1760140917298,0.0886687,112520.0,112510.0,0.3608]
[1760140917494,0.0886687,112520.0,112510.0,0.00422033]
[1760140917797,0.0886687,112520.0,112510.0,0.76502033]
[1760140917993,0.0886845,112500.0,112490.0,0.00622033]
[1760140918193,0.4494845,112500.0,112490.0,0.001]
[1760140918496,0.4494845,112500.0,112490.0,0.02239008]
[1760140918698,0.0887081,112470.0,112460.0,0.03163696]
[1760140918900,0.0886917,112490.0,112470.0,0.00422033]
[1760140919097,0.0876917,112490.0,112470.0,0.38719288]
[1760140919399,0.0886978,112480.0,112470.0,0.38719288]
[1760140919597,0.0886978,112480.0,112470.0,0.38297255]
[1760140919794,0.0886978,112480.0,112470.0,0.02217255]
[1760140919795,0.4494978,112480.0,112470.0,0.02217255]
[1760140920094,0.8494978,112480.0,112470.0,0.02217255]
[1760140920294,0.8494978,112480.0,112470.0,9e-08]
[1760140920502,0.088724,112450.0,112440.0,0.00011195]
[1760140921099,0.087724,112450.0,112440.0,0.00433228]
[1760140921696,0.00010088,112480.0,112440.0,0.76713228]
[1760140921895,0.088716,112460.0,112450.0,0.3608]
[1760140922095,0.0887239,112450.0,112440.0,0.00211195]
[1760140922301,0.0887239,112450.0,112440.0,0.00411195]
[1760140922594,0.0887239,112450.0,112440.0,0.00633228]
[1760140922798,0.0887239,112450.0,112440.0,0.00211195]
[1760140923098,0.0887239,112450.0,112440.0,0.00011195]
[1760140923300,0.088717,112460.0,112440.0,0.76513228]
[1760140923497,0.3608,112470.0,112440.0,0.36513228]
[1760140923699,0.0887241,112450.0,112440.0,0.36513228]
[1760140924598,0.06980981,112480.0,112460.0,0.00422033]
[1760140924798,0.0887023,112480.0,112470.0,0.3608]
[1760140924995,0.8041941,112510.0,112460.0,0.00422033]
[1760140924996,0.0887092,112470.0,112460.0,0.00422033]
[1760140925200,0.0887092,112470.0,112460.0,0.3608]
[1760140925403,0.8929705,112490.0,112450.0,0.3608]
[1760140925600,0.088719,112460.0,112450.0,0.36502033]
[1760140925798,0.088719,112460.0,112450.0,0.00422033]
[1760140925999,0.0887382,112450.0,112440.0,0.00011195]
[1760140926194,0.8495382,112450.0,112440.0,0.00011195]
[1760140926397,0.8495382,112450.0,112440.0,5e-08]
[1760140926899,0.98359249,112450.0,112440.0,5e-08]
[1760140929095,0.0887849,112390.0,112380.0,0.00591688]
[1760140929296,0.3608,112390.0,112380.0,0.00591688]
[1760140929605,0.4495796,112400.0,112380.0,0.36671688]
[1760140929899,0.3608,112430.0,112390.0,0.7608]
[1760140930105,0.0887717,112410.0,112390.0,0.3608]
[1760140930304,0.0887827,112400.0,112380.0,0.00791688]
[1760140930499,7.52e-05,112390.0,112380.0,0.36871688]
[1760140930799,7.52e-05,112390.0,112380.0,0.00791688]
[1760140931000,7.52e-05,112390.0,112380.0,0.00891688]
[1760140931196,0.0887775,112400.0,112390.0,0.0009248]
[1760140931396,0.8103775,112400.0,112390.0,0.0009248]
[1760140931900,0.0887862,112390.0,112380.0,8e-08]
[1760140932095,0.3608,112390.0,112340.0,0.3608]
[1760140932500,0.3608,112370.0,112340.0,0.3608]
[1760140933300,0.36089222,112360.0,112330.0,0.36090216]
[1760140933500,0.4496292,112350.0,112330.0,0.36090216]
[1760140934001,0.4496236,112350.0,112330.0,0.00010216]
[1760140934202,0.4496303,112340.0,112330.0,0.00010216]
[1760140934505,0.3608,112350.0,112330.0,0.00010216]
[1760140934702,0.001,112370.0,112340.0,0.3608]